[Event "Titled Tuesday Blitz June 20 Late 2023"]
[White "Bogaudinov, Rushan"]
[Black "Golubev, Mikhail"]
[WhiteFideId "4129288"]
[BlackFideId "14100983"]
[WhiteElo "1967"]
[BlackElo "2374"]
[Result "1-0"]
[Round "11"]
[TimeControl "180+2"]
[Date "2023.06.20"]
[WhiteClock "0:00:14"]
[BlackClock "0:00:00"]
[Board "69"]

1. e4 {[%clk 0:03:00]}  c5 {[%clk 0:02:57]} 2. Nf3 {[%clk 0:03:00]}  d6 {[%clk 0:02:57]} 3. d4 {[%clk 0:02:59]}  cxd4 {[%clk 0:02:56]} 4. Nxd4 {[%clk 0:03:00]}  Nf6 {[%clk 0:02:57]} 5. Nc3 {[%clk 0:03:00]}  g6 {[%clk 0:02:57]} 6. Be2 {[%clk 0:02:52]}  Bg7 {[%clk 0:02:57]} 7. O-O {[%clk 0:02:52]}  O-O {[%clk 0:02:57]} 8. Bf3 {[%clk 0:02:49]}  Nbd7 {[%clk 0:02:51]} 9. Re1 {[%clk 0:02:45]}  Ne5 {[%clk 0:02:46]} 10. Be2 {[%clk 0:02:45]}  Nc6 {[%clk 0:02:46]} 11. Nb3 {[%clk 0:02:34]}  Be6 {[%clk 0:02:44]} 12. Be3 {[%clk 0:02:26]}  d5 {[%clk 0:02:36]} 13. exd5 {[%clk 0:02:23]}  Nxd5 {[%clk 0:02:37]} 14. Nxd5 {[%clk 0:02:23]}  Bxd5 {[%clk 0:02:24]} 15. c3 {[%clk 0:02:21]}  b6 {[%clk 0:02:16]} 16. Bf3 {[%clk 0:02:21]}  Bxf3 {[%clk 0:02:13]} 17. Qxf3 {[%clk 0:02:22]}  Qc7 {[%clk 0:02:13]} 18. Rad1 {[%clk 0:02:15]}  e5 {[%clk 0:02:11]} 19. h4 {[%clk 0:02:07]}  a5 {[%clk 0:02:08]} 20. a4 {[%clk 0:02:02]}  Rae8 {[%clk 0:01:56]} 21. h5 {[%clk 0:02:00]}  Re6 {[%clk 0:01:55]} 22. h6 {[%clk 0:02:00]}  Bh8 {[%clk 0:01:53]} 23. Bg5 {[%clk 0:01:54]}  Rfe8 {[%clk 0:01:50]} 24. Qd5 {[%clk 0:01:50]}  e4 {[%clk 0:01:44]} 25. Qd7 {[%clk 0:01:43]}  Qe5 {[%clk 0:01:35]} 26. Be3 {[%clk 0:01:36]}  Qb8 {[%clk 0:01:30]} 27. Qd5 {[%clk 0:01:24]}  Ne7 {[%clk 0:01:25]} 28. Qb5 {[%clk 0:01:21]}  Nf5 {[%clk 0:01:22]} 29. Nd4 {[%clk 0:01:05]}  Bxd4 {[%clk 0:01:07]} 30. cxd4 {[%clk 0:01:01]}  Nxe3 {[%clk 0:01:05]} 31. Rxe3 {[%clk 0:00:56]}  f5 {[%clk 0:01:05]} 32. d5 {[%clk 0:00:56]}  Rd6 {[%clk 0:01:03]} 33. Rc3 {[%clk 0:00:52]}  f4 {[%clk 0:00:56]} 34. Rc6 {[%clk 0:00:40]}  e3 {[%clk 0:00:54]} 35. fxe3 {[%clk 0:00:37]}  Rxc6 {[%clk 0:00:47]} 36. dxc6 {[%clk 0:00:35]}  Qc7 {[%clk 0:00:18]} 37. Qd5+ {[%clk 0:00:33]}  Kf8 {[%clk 0:00:18]} 38. exf4 {[%clk 0:00:30]}  Re7 {[%clk 0:00:11]} 39. Qd8+ {[%clk 0:00:25]}  Qxd8 {[%clk 0:00:10]} 40. Rxd8+ {[%clk 0:00:25]}  Kf7 {[%clk 0:00:11]} 41. Rb8 {[%clk 0:00:23]}  Ke6 {[%clk 0:00:09]} 42. Rxb6 {[%clk 0:00:23]}  Kd6 {[%clk 0:00:09]} 43. Ra6 {[%clk 0:00:21]}  Kc5 {[%clk 0:00:05]} 44. Kf2 {[%clk 0:00:18]}  Kb4 {[%clk 0:00:03]} 45. Rb6+ {[%clk 0:00:17]}  Kxa4 {[%clk 0:00:01]} 46. Rb7 {[%clk 0:00:16]}  Re4 {[%clk 0:00:00]} 47. Rxh7 {[%clk 0:00:14]} 1-0


[Site "https://www.chess.com"]

[Event "Titled Tuesday Blitz June 20 Late 2023"]
[White "Uzcategui Rodriguez, Alejandro"]
[Black "Omariev, Maksim"]
[WhiteFideId "3903400"]
[BlackFideId "4193423"]
[WhiteElo "2252"]
[BlackElo "2420"]
[Result "0-1"]
[Round "11"]
[TimeControl "180+2"]
[Date "2023.06.20"]
[WhiteClock "0:01:05"]
[BlackClock "0:00:20"]
[Board "70"]

1. e4 {[%clk 0:02:48]}  c5 {[%clk 0:03:00]} 2. Nf3 {[%clk 0:02:47]}  d6 {[%clk 0:03:00]} 3. d4 {[%clk 0:02:47]}  cxd4 {[%clk 0:03:01]} 4. Nxd4 {[%clk 0:02:48]}  Nf6 {[%clk 0:03:02]} 5. Nc3 {[%clk 0:02:48]}  a6 {[%clk 0:03:02]} 6. Bc4 {[%clk 0:02:46]}  e6 {[%clk 0:03:03]} 7. Bb3 {[%clk 0:02:46]}  b5 {[%clk 0:03:02]} 8. Qf3 {[%clk 0:02:45]}  Qc7 {[%clk 0:02:59]} 9. O-O {[%clk 0:02:42]}  Be7 {[%clk 0:02:57]} 10. Qg3 {[%clk 0:02:41]}  O-O {[%clk 0:02:58]} 11. Nf3 {[%clk 0:02:39]}  Bb7 {[%clk 0:02:52]} 12. a3 {[%clk 0:02:32]}  Nbd7 {[%clk 0:02:49]} 13. Be3 {[%clk 0:02:16]}  Nxe4 {[%clk 0:02:44]} 14. Nxe4 {[%clk 0:02:14]}  Bxe4 {[%clk 0:02:45]} 15. Rad1 {[%clk 0:02:14]}  Nc5 {[%clk 0:02:38]} 16. Bd4 {[%clk 0:02:03]}  Bg6 {[%clk 0:02:23]} 17. h4 {[%clk 0:01:58]}  Nxb3 {[%clk 0:02:15]} 18. cxb3 {[%clk 0:01:57]}  h5 {[%clk 0:02:08]} 19. Ng5 {[%clk 0:01:51]}  Bxg5 {[%clk 0:01:58]} 20. Qxg5 {[%clk 0:01:50]}  Rac8 {[%clk 0:01:39]} 21. Bc3 {[%clk 0:01:49]}  e5 {[%clk 0:01:30]} 22. f4 {[%clk 0:01:48]}  exf4 {[%clk 0:01:25]} 23. Rxf4 {[%clk 0:01:45]}  Rfe8 {[%clk 0:01:14]} 24. g4 {[%clk 0:01:25]}  Qc5+ {[%clk 0:00:15]} 25. Qxc5 {[%clk 0:01:23]}  dxc5 {[%clk 0:00:16]} 26. gxh5 {[%clk 0:01:23]}  Bxh5 {[%clk 0:00:17]} 27. Rd5 {[%clk 0:01:23]}  Be2 {[%clk 0:00:05]} 28. Rg5 {[%clk 0:01:22]}  g6 {[%clk 0:00:04]} 29. h5 {[%clk 0:00:52]}  Bxh5 {[%clk 0:00:03]} 30. Rh4 {[%clk 0:00:53]}  Kf8 {[%clk 0:00:03]} 31. Bf6 {[%clk 0:00:53]}  Re6 {[%clk 0:00:03]} 32. Rhxh5 {[%clk 0:00:54]}  gxh5 {[%clk 0:00:03]} 33. Bc3 {[%clk 0:00:53]}  Rg6 {[%clk 0:00:02]} 34. Rxg6 {[%clk 0:00:54]}  fxg6 {[%clk 0:00:03]} 35. Kh2 {[%clk 0:00:54]}  Kf7 {[%clk 0:00:04]} 36. Kh3 {[%clk 0:00:55]}  Ke6 {[%clk 0:00:04]} 37. Kh4 {[%clk 0:00:56]}  Kf5 {[%clk 0:00:05]} 38. Bd2 {[%clk 0:00:56]}  Rd8 {[%clk 0:00:05]} 39. Bg5 {[%clk 0:00:56]}  Rd3 {[%clk 0:00:05]} 40. Be7 {[%clk 0:00:55]}  Rxb3 {[%clk 0:00:04]} 41. Bxc5 {[%clk 0:00:55]}  Rxb2 {[%clk 0:00:04]} 42. a4 {[%clk 0:00:54]}  bxa4 {[%clk 0:00:04]} 43. Ba3 {[%clk 0:00:54]}  Rb3 {[%clk 0:00:04]} 44. Bc1 {[%clk 0:00:54]}  Rb4+ {[%clk 0:00:04]} 45. Kh3 {[%clk 0:00:54]}  g5 {[%clk 0:00:03]} 46. Kg3 {[%clk 0:00:54]}  Rc4 {[%clk 0:00:03]} 47. Bd2 {[%clk 0:00:53]}  Rd4 {[%clk 0:00:04]} 48. Kf3 {[%clk 0:00:54]}  Rxd2 {[%clk 0:00:03]} 49. Ke3 {[%clk 0:00:55]}  Rb2 {[%clk 0:00:04]} 50. Kd4 {[%clk 0:00:55]}  Rb3 {[%clk 0:00:05]} 51. Kc4 {[%clk 0:00:55]}  h4 {[%clk 0:00:06]} 52. Kc5 {[%clk 0:00:55]}  h3 {[%clk 0:00:07]} 53. Kd6 {[%clk 0:00:56]}  h2 {[%clk 0:00:08]} 54. Ke7 {[%clk 0:00:57]}  g4 {[%clk 0:00:08]} 55. Kf7 {[%clk 0:00:58]}  g3 {[%clk 0:00:09]} 56. Kg7 {[%clk 0:00:58]}  g2 {[%clk 0:00:10]} 57. Kh6 {[%clk 0:00:59]}  a3 {[%clk 0:00:09]} 58. Kg7 {[%clk 0:00:58]}  a2 {[%clk 0:00:10]} 59. Kf8 {[%clk 0:00:59]}  a5 {[%clk 0:00:11]} 60. Kf7 {[%clk 0:00:59]}  a4 {[%clk 0:00:12]} 61. Kf8 {[%clk 0:01:00]}  a3 {[%clk 0:00:12]} 62. Kf7 {[%clk 0:01:01]}  a1=Q {[%clk 0:00:13]} 63. Kf8 {[%clk 0:01:02]}  a2 {[%clk 0:00:14]} 64. Kf7 {[%clk 0:01:03]}  Qb2 {[%clk 0:00:14]} 65. Kf8 {[%clk 0:01:04]}  a1=Q {[%clk 0:00:15]} 66. Kf7 {[%clk 0:01:04]}  g1=Q {[%clk 0:00:16]} 67. Kf8 {[%clk 0:01:05]}  h1=Q {[%clk 0:00:17]} 68. Kf7 {[%clk 0:01:06]}  Qbb1 {[%clk 0:00:17]} 69. Kf8 {[%clk 0:01:06]}  Ra3 {[%clk 0:00:17]} 70. Kf7 {[%clk 0:01:07]}  Qab2 {[%clk 0:00:18]} 71. Kf8 {[%clk 0:01:08]}  Q2c1 {[%clk 0:00:19]} 72. Kf7 {[%clk 0:01:08]}  Ra1 {[%clk 0:00:19]} 73. Kf8 {[%clk 0:01:08]}  Ke4 {[%clk 0:00:20]} 74. Kf7 {[%clk 0:01:09]}  Kd3 {[%clk 0:00:21]} 75. Ke6 {[%clk 0:01:09]}  Kd2 {[%clk 0:00:22]} 76. Ke5 {[%clk 0:01:08]}  Kd1 {[%clk 0:00:22]} 77. Kf6 {[%clk 0:01:07]}  Qf4+ {[%clk 0:00:21]} 78. Ke7 {[%clk 0:01:05]}  Qbb7+ {[%clk 0:00:21]} 79. Kd8 {[%clk 0:01:05]}  Qgd4+ {[%clk 0:00:21]} 80. Ke8 {[%clk 0:01:05]}  Qhh8# {[%clk 0:00:20]} 0-1


[Site "https://www.chess.com"]

[Event "Titled Tuesday Blitz June 20 Late 2023"]
[White "Jovic, Stanoje"]
[Black "KSho99"]
[WhiteFideId "905020"]
[WhiteElo "2236"]
[BlackElo "2228"]
[Result "0-1"]
[Round "11"]
[TimeControl "180+2"]
[Date "2023.06.20"]
[WhiteClock "0:00:00"]
[BlackClock "0:00:07"]
[Board "72"]

1. c4 {[%clk 0:03:00]}  f5 {[%clk 0:02:58]} 2. g3 {[%clk 0:03:00]}  Nf6 {[%clk 0:02:58]} 3. Bg2 {[%clk 0:03:00]}  g6 {[%clk 0:02:58]} 4. Nc3 {[%clk 0:03:00]}  Bg7 {[%clk 0:02:59]} 5. d3 {[%clk 0:03:00]}  O-O {[%clk 0:02:59]} 6. e4 {[%clk 0:03:01]}  fxe4 {[%clk 0:02:43]} 7. dxe4 {[%clk 0:03:00]}  Nc6 {[%clk 0:02:38]} 8. Nge2 {[%clk 0:02:59]}  d6 {[%clk 0:02:28]} 9. h3 {[%clk 0:02:53]}  Be6 {[%clk 0:02:27]} 10. Nd5 {[%clk 0:02:42]}  Qd7 {[%clk 0:02:21]} 11. Nef4 {[%clk 0:02:39]}  Bf7 {[%clk 0:02:16]} 12. O-O {[%clk 0:02:36]}  Ne5 {[%clk 0:02:12]} 13. Qc2 {[%clk 0:02:28]}  c6 {[%clk 0:01:55]} 14. Ne3 {[%clk 0:02:28]}  Bh6 {[%clk 0:01:41]} 15. b4 {[%clk 0:02:19]}  a5 {[%clk 0:01:33]} 16. b5 {[%clk 0:02:11]}  cxb5 {[%clk 0:01:33]} 17. cxb5 {[%clk 0:02:11]}  Rfc8 {[%clk 0:01:31]} 18. Qe2 {[%clk 0:02:04]}  Nc4 {[%clk 0:01:26]} 19. a4 {[%clk 0:01:56]}  Nxe3 {[%clk 0:01:21]} 20. Bxe3 {[%clk 0:01:51]}  Bc4 {[%clk 0:01:21]} 21. Nd3 {[%clk 0:01:47]}  Bg7 {[%clk 0:01:17]} 22. Rfd1 {[%clk 0:01:41]}  Qe6 {[%clk 0:01:14]} 23. Qf3 {[%clk 0:01:30]}  Nd7 {[%clk 0:01:05]} 24. Nf4 {[%clk 0:01:24]}  Qf7 {[%clk 0:00:58]} 25. Rac1 {[%clk 0:01:22]}  Ne5 {[%clk 0:00:52]} 26. Rxc4 {[%clk 0:01:07]}  Nxf3+ {[%clk 0:00:52]} 27. Bxf3 {[%clk 0:01:07]}  Qxc4 {[%clk 0:00:50]} 28. e5 {[%clk 0:01:05]}  Qxa4 {[%clk 0:00:44]} 29. exd6 {[%clk 0:00:55]}  exd6 {[%clk 0:00:39]} 30. Rxd6 {[%clk 0:00:55]}  Qxb5 {[%clk 0:00:37]} 31. Bd5+ {[%clk 0:00:49]}  Kh8 {[%clk 0:00:37]} 32. Rb6 {[%clk 0:00:42]}  Qxb6 {[%clk 0:00:26]} 33. Bxb6 {[%clk 0:00:43]}  a4 {[%clk 0:00:16]} 34. Ne6 {[%clk 0:00:43]}  a3 {[%clk 0:00:14]} 35. Ng5 {[%clk 0:00:43]}  Rf8 {[%clk 0:00:12]} 36. Ba2 {[%clk 0:00:27]}  Rf5 {[%clk 0:00:10]} 37. Ne6 {[%clk 0:00:22]}  Rf6 {[%clk 0:00:08]} 38. Bd4 {[%clk 0:00:09]}  Rxe6 {[%clk 0:00:06]} 39. Bxg7+ {[%clk 0:00:09]}  Kxg7 {[%clk 0:00:06]} 40. Bxe6 {[%clk 0:00:00]}  a2 {[%clk 0:00:07]} 0-1


[Site "https://www.chess.com"]

[Event "Titled Tuesday Blitz June 20 Late 2023"]
[White "Shuvalov, Evgenij"]
[Black "zano2023"]
[WhiteFideId "4187237"]
[WhiteElo "2080"]
[BlackElo "2219"]
[Result "1-0"]
[Round "11"]
[TimeControl "180+2"]
[Date "2023.06.20"]
[WhiteClock "0:00:41"]
[BlackClock "0:00:24"]
[Board "73"]

1. e4 {[%clk 0:02:57]}  e5 {[%clk 0:02:59]} 2. Nf3 {[%clk 0:02:56]}  d6 {[%clk 0:03:00]} 3. Bb5+ {[%clk 0:02:53]}  c6 {[%clk 0:02:59]} 4. Be2 {[%clk 0:02:51]}  f5 {[%clk 0:02:58]} 5. d3 {[%clk 0:02:49]}  Nf6 {[%clk 0:02:57]} 6. Nbd2 {[%clk 0:02:47]}  Be7 {[%clk 0:02:57]} 7. O-O {[%clk 0:02:47]}  O-O {[%clk 0:02:57]} 8. Re1 {[%clk 0:02:47]}  f4 {[%clk 0:02:53]} 9. d4 {[%clk 0:02:43]}  Qc7 {[%clk 0:02:52]} 10. a4 {[%clk 0:02:39]}  Bg4 {[%clk 0:02:52]} 11. c3 {[%clk 0:02:31]}  Nbd7 {[%clk 0:02:50]} 12. a5 {[%clk 0:02:30]}  Kh8 {[%clk 0:02:49]} 13. Ng5 {[%clk 0:02:26]}  Bxe2 {[%clk 0:02:29]} 14. Qxe2 {[%clk 0:02:27]}  Rfe8 {[%clk 0:02:23]} 15. Qc4 {[%clk 0:02:23]}  h6 {[%clk 0:02:18]} 16. Ne6 {[%clk 0:01:50]}  Qc8 {[%clk 0:02:17]} 17. Nf3 {[%clk 0:01:48]}  Bd8 {[%clk 0:01:33]} 18. Nh4 {[%clk 0:01:40]}  Nf8 {[%clk 0:01:30]} 19. Nxf8 {[%clk 0:01:38]}  Rxf8 {[%clk 0:01:28]} 20. Ng6+ {[%clk 0:01:38]}  Kh7 {[%clk 0:01:21]} 21. Nxf8+ {[%clk 0:01:38]}  Kh8 {[%clk 0:01:22]} 22. Ng6+ {[%clk 0:01:35]}  Kh7 {[%clk 0:01:21]} 23. Nh4 {[%clk 0:01:33]}  Qg4 {[%clk 0:01:17]} 24. Nf3 {[%clk 0:01:26]}  Nxe4 {[%clk 0:01:06]} 25. d5 {[%clk 0:01:07]}  cxd5 {[%clk 0:00:56]} 26. Qxd5 {[%clk 0:01:06]}  Ng5 {[%clk 0:00:57]} 27. Nxg5+ {[%clk 0:01:04]}  Bxg5 {[%clk 0:00:57]} 28. h3 {[%clk 0:01:02]}  Qh5 {[%clk 0:00:49]} 29. Qxb7 {[%clk 0:01:01]}  Rf8 {[%clk 0:00:48]} 30. Qf3 {[%clk 0:00:59]}  Qg6 {[%clk 0:00:46]} 31. b4 {[%clk 0:00:55]}  Re8 {[%clk 0:00:45]} 32. Qe4 {[%clk 0:00:54]}  Qxe4 {[%clk 0:00:43]} 33. Rxe4 {[%clk 0:00:54]}  d5 {[%clk 0:00:44]} 34. Re1 {[%clk 0:00:54]}  e4 {[%clk 0:00:44]} 35. Bd2 {[%clk 0:00:53]}  Bf6 {[%clk 0:00:44]} 36. Rad1 {[%clk 0:00:53]}  Rc8 {[%clk 0:00:40]} 37. Bxf4 {[%clk 0:00:50]}  Bxc3 {[%clk 0:00:40]} 38. Re2 {[%clk 0:00:50]}  Bxb4 {[%clk 0:00:33]} 39. Rxd5 {[%clk 0:00:48]}  Rc4 {[%clk 0:00:30]} 40. a6 {[%clk 0:00:44]}  Rc6 {[%clk 0:00:25]} 41. Rxe4 {[%clk 0:00:41]}  Rxa6 {[%clk 0:00:24]} 42. Rxb4 {[%clk 0:00:41]} 1-0


[Site "https://www.chess.com"]

[Event "Titled Tuesday Blitz June 20 Late 2023"]
[White "Shapiro, Daniel"]
[Black "brm72"]
[WhiteFideId "2001780"]
[WhiteElo "2323"]
[BlackElo "2541"]
[Result "0-1"]
[Round "11"]
[TimeControl "180+2"]
[Date "2023.06.20"]
[WhiteClock "0:00:05"]
[BlackClock "0:02:03"]
[Board "76"]

1. d4 {[%clk 0:03:00]}  Nf6 {[%clk 0:02:59]} 2. c4 {[%clk 0:03:00]}  g6 {[%clk 0:03:00]} 3. Nc3 {[%clk 0:02:59]}  d5 {[%clk 0:03:00]} 4. Qb3 {[%clk 0:02:59]}  dxc4 {[%clk 0:02:57]} 5. Qxc4 {[%clk 0:03:00]}  Bg7 {[%clk 0:02:57]} 6. e4 {[%clk 0:03:00]}  O-O {[%clk 0:02:56]} 7. Nf3 {[%clk 0:03:00]}  Nc6 {[%clk 0:02:55]} 8. Be2 {[%clk 0:02:55]}  Bg4 {[%clk 0:02:54]} 9. Be3 {[%clk 0:02:40]}  Bxf3 {[%clk 0:02:43]} 10. gxf3 {[%clk 0:02:31]}  e5 {[%clk 0:02:43]} 11. d5 {[%clk 0:02:29]}  Nd4 {[%clk 0:02:44]} 12. Bxd4 {[%clk 0:02:26]}  exd4 {[%clk 0:02:45]} 13. Qxd4 {[%clk 0:02:26]}  Nh5 {[%clk 0:02:40]} 14. Qd2 {[%clk 0:02:00]}  Be5 {[%clk 0:02:40]} 15. Bc4 {[%clk 0:01:39]}  Qf6 {[%clk 0:02:36]} 16. Kd1 {[%clk 0:00:38]}  a6 {[%clk 0:02:31]} 17. Kc2 {[%clk 0:00:38]}  b5 {[%clk 0:02:32]} 18. Be2 {[%clk 0:00:36]}  b4 {[%clk 0:02:28]} 19. Na4 {[%clk 0:00:36]}  c6 {[%clk 0:02:28]} 20. dxc6 {[%clk 0:00:33]}  Qxc6+ {[%clk 0:02:29]} 21. Kb3 {[%clk 0:00:31]}  Rfd8 {[%clk 0:02:25]} 22. Qc2 {[%clk 0:00:29]}  Qf6 {[%clk 0:02:21]} 23. Rhd1 {[%clk 0:00:27]}  Rac8 {[%clk 0:02:20]} 24. Rxd8+ {[%clk 0:00:26]}  Rxd8 {[%clk 0:02:21]} 25. Rd1 {[%clk 0:00:25]}  a5 {[%clk 0:02:18]} 26. Rd5 {[%clk 0:00:25]}  Nf4 {[%clk 0:02:17]} 27. Bf1 {[%clk 0:00:24]}  Nxd5 {[%clk 0:02:13]} 28. exd5 {[%clk 0:00:23]}  Rxd5 {[%clk 0:02:14]} 29. Qc4 {[%clk 0:00:19]}  Qxf3+ {[%clk 0:02:13]} 30. Nc3 {[%clk 0:00:13]}  bxc3 {[%clk 0:02:11]} 31. bxc3 {[%clk 0:00:14]}  Qxc3+ {[%clk 0:02:02]} 32. Qxc3 {[%clk 0:00:11]}  Bxc3 {[%clk 0:02:03]} 33. Kxc3 {[%clk 0:00:05]}  Rf5 {[%clk 0:02:03]} 0-1


[Site "https://www.chess.com"]

[Event "Titled Tuesday Blitz June 20 Late 2023"]
[White "CheckBits"]
[Black "Vifleemskaia, Svetlana"]
[BlackFideId "4129490"]
[WhiteElo "2430"]
[BlackElo "1930"]
[Result "1-0"]
[Round "11"]
[TimeControl "180+2"]
[Date "2023.06.21"]
[WhiteClock "0:00:43"]
[BlackClock "0:00:00"]
[Board "79"]

1. Nf3 {[%clk 0:02:57]}  Nf6 {[%clk 0:02:56]} 2. d4 {[%clk 0:02:57]}  d5 {[%clk 0:02:55]} 3. Bf4 {[%clk 0:02:57]}  c5 {[%clk 0:02:55]} 4. e3 {[%clk 0:02:57]}  Nc6 {[%clk 0:02:54]} 5. Nbd2 {[%clk 0:02:56]}  cxd4 {[%clk 0:02:51]} 6. exd4 {[%clk 0:02:56]}  Bf5 {[%clk 0:02:48]} 7. c3 {[%clk 0:02:55]}  e6 {[%clk 0:02:48]} 8. Be2 {[%clk 0:02:53]}  h6 {[%clk 0:02:48]} 9. O-O {[%clk 0:02:51]}  Bd6 {[%clk 0:02:47]} 10. Ne5 {[%clk 0:02:50]}  O-O {[%clk 0:02:45]} 11. Re1 {[%clk 0:02:42]}  Bxe5 {[%clk 0:02:35]} 12. dxe5 {[%clk 0:02:41]}  Nd7 {[%clk 0:02:35]} 13. Bf1 {[%clk 0:02:39]}  a5 {[%clk 0:02:31]} 14. a3 {[%clk 0:02:30]}  a4 {[%clk 0:02:29]} 15. Nf3 {[%clk 0:02:20]}  Qb6 {[%clk 0:02:25]} 16. Qd2 {[%clk 0:02:20]}  Be4 {[%clk 0:02:21]} 17. Nd4 {[%clk 0:02:18]}  Nc5 {[%clk 0:01:58]} 18. Rad1 {[%clk 0:02:05]}  Na5 {[%clk 0:01:42]} 19. Bxh6 {[%clk 0:01:58]}  Bg6 {[%clk 0:00:38]} 20. Bg5 {[%clk 0:01:44]}  Ne4 {[%clk 0:00:33]} 21. Qc1 {[%clk 0:01:31]}  Nb3 {[%clk 0:00:25]} 22. Qf4 {[%clk 0:01:29]}  Nxd4 {[%clk 0:00:20]} 23. cxd4 {[%clk 0:01:23]}  Qxb2 {[%clk 0:00:17]} 24. Re3 {[%clk 0:01:21]}  Bf5 {[%clk 0:00:09]} 25. Bd3 {[%clk 0:01:01]}  Rac8 {[%clk 0:00:06]} 26. Bxe4 {[%clk 0:00:56]}  dxe4 {[%clk 0:00:03]} 27. Rg3 {[%clk 0:00:55]}  Rc2 {[%clk 0:00:01]} 28. Bf6 {[%clk 0:00:50]}  Bg6 {[%clk 0:00:00]} 29. Bxg7 {[%clk 0:00:43]} 1-0


[Site "https://www.chess.com"]

[Event "Titled Tuesday Blitz June 20 Late 2023"]
[White "Hoffmann, Asa"]
[Black "Sanchez, Robert"]
[WhiteFideId "2001470"]
[BlackFideId "2034360"]
[WhiteElo "2117"]
[BlackElo "2098"]
[Result "1-0"]
[Round "11"]
[TimeControl "180+2"]
[Date "2023.06.20"]
[WhiteClock "0:01:05"]
[BlackClock "0:00:08"]
[Board "86"]

1. Nc3 {[%clk 0:02:57]}  e6 {[%clk 0:02:59]} 2. e4 {[%clk 0:02:57]}  d5 {[%clk 0:02:59]} 3. Qe2 {[%clk 0:02:57]}  Nf6 {[%clk 0:02:58]} 4. d3 {[%clk 0:02:56]}  c5 {[%clk 0:02:57]} 5. e5 {[%clk 0:02:56]}  Nfd7 {[%clk 0:02:57]} 6. f4 {[%clk 0:02:56]}  Nc6 {[%clk 0:02:57]} 7. Nf3 {[%clk 0:02:56]}  Be7 {[%clk 0:02:56]} 8. g3 {[%clk 0:02:56]}  O-O {[%clk 0:02:55]} 9. h4 {[%clk 0:02:55]}  f6 {[%clk 0:02:47]} 10. Bh3 {[%clk 0:02:54]}  Kh8 {[%clk 0:02:43]} 11. Bxe6 {[%clk 0:02:51]}  Ndxe5 {[%clk 0:02:35]} 12. Bxd5 {[%clk 0:02:43]}  Nxf3+ {[%clk 0:02:30]} 13. Qxf3 {[%clk 0:02:34]}  Nd4 {[%clk 0:02:30]} 14. Qg2 {[%clk 0:02:34]}  Bg4 {[%clk 0:02:20]} 15. O-O {[%clk 0:02:32]}  Rb8 {[%clk 0:02:11]} 16. a4 {[%clk 0:02:30]}  a6 {[%clk 0:02:09]} 17. a5 {[%clk 0:02:28]}  Qd7 {[%clk 0:02:10]} 18. Re1 {[%clk 0:02:25]}  Bd6 {[%clk 0:02:04]} 19. Be3 {[%clk 0:02:22]}  b5 {[%clk 0:02:00]} 20. axb6 {[%clk 0:02:21]}  Rxb6 {[%clk 0:02:00]} 21. b3 {[%clk 0:02:18]}  Nf5 {[%clk 0:01:25]} 22. Bf2 {[%clk 0:02:16]}  Bc7 {[%clk 0:01:13]} 23. Be4 {[%clk 0:02:14]}  Rc8 {[%clk 0:01:01]} 24. Bxc5 {[%clk 0:02:09]}  Rbb8 {[%clk 0:00:56]} 25. b4 {[%clk 0:02:01]}  Bd6 {[%clk 0:00:49]} 26. Na4 {[%clk 0:01:56]}  Bxc5+ {[%clk 0:00:47]} 27. Nxc5 {[%clk 0:01:55]}  Qd4+ {[%clk 0:00:47]} 28. Qf2 {[%clk 0:01:52]}  Qxb4 {[%clk 0:00:45]} 29. Nxa6 {[%clk 0:01:51]}  Qc3 {[%clk 0:00:42]} 30. Nxb8 {[%clk 0:01:50]}  Rxb8 {[%clk 0:00:43]} 31. Rab1 {[%clk 0:01:47]}  Rf8 {[%clk 0:00:40]} 32. Kh2 {[%clk 0:01:43]}  h5 {[%clk 0:00:39]} 33. Rb3 {[%clk 0:01:39]}  Qc7 {[%clk 0:00:38]} 34. Reb1 {[%clk 0:01:38]}  Nh6 {[%clk 0:00:32]} 35. c4 {[%clk 0:01:34]}  Bd1 {[%clk 0:00:29]} 36. Qb6 {[%clk 0:01:25]}  Ng4+ {[%clk 0:00:25]} 37. Kg1 {[%clk 0:01:25]}  Qd7 {[%clk 0:00:17]} 38. Rxd1 {[%clk 0:01:22]}  f5 {[%clk 0:00:18]} 39. Bf3 {[%clk 0:01:16]}  Qe7 {[%clk 0:00:14]} 40. Bxg4 {[%clk 0:01:14]}  hxg4 {[%clk 0:00:15]} 41. Qf2 {[%clk 0:01:13]}  Rd8 {[%clk 0:00:15]} 42. d4 {[%clk 0:01:13]}  Qe4 {[%clk 0:00:14]} 43. Re3 {[%clk 0:01:10]}  Qc6 {[%clk 0:00:13]} 44. c5 {[%clk 0:01:10]}  Qa4 {[%clk 0:00:12]} 45. Qd2 {[%clk 0:01:06]}  Rd5 {[%clk 0:00:08]} 46. Re5 {[%clk 0:01:05]} 1-0


[Site "https://www.chess.com"]

[Event "Titled Tuesday Blitz June 20 Late 2023"]
[White "Vaglio Munoz, Jaime"]
[Black "Ward, Ieuan C"]
[WhiteFideId "6500145"]
[BlackFideId "406627"]
[WhiteElo "2199"]
[BlackElo "2265"]
[Result "0-1"]
[Round "11"]
[TimeControl "180+2"]
[Date "2023.06.20"]
[WhiteClock "0:00:00"]
[BlackClock "0:00:21"]
[Board "90"]

1. Nf3 {[%clk 0:03:00]}  Nf6 {[%clk 0:02:56]} 2. b3 {[%clk 0:02:59]}  g6 {[%clk 0:02:53]} 3. Bb2 {[%clk 0:02:59]}  Bg7 {[%clk 0:02:54]} 4. c4 {[%clk 0:02:57]}  d5 {[%clk 0:02:52]} 5. d3 {[%clk 0:02:55]}  c6 {[%clk 0:02:51]} 6. g3 {[%clk 0:02:52]}  Bg4 {[%clk 0:02:50]} 7. Bg2 {[%clk 0:02:51]}  Qd7 {[%clk 0:02:50]} 8. h3 {[%clk 0:02:50]}  Bxf3 {[%clk 0:02:50]} 9. Bxf3 {[%clk 0:02:47]}  O-O {[%clk 0:02:50]} 10. Nd2 {[%clk 0:02:37]}  Re8 {[%clk 0:02:47]} 11. Bg2 {[%clk 0:02:11]}  e5 {[%clk 0:02:38]} 12. O-O {[%clk 0:02:10]}  Na6 {[%clk 0:02:27]} 13. a3 {[%clk 0:01:58]}  Rad8 {[%clk 0:02:26]} 14. Qc2 {[%clk 0:01:52]}  Nc7 {[%clk 0:02:22]} 15. Rac1 {[%clk 0:01:46]}  d4 {[%clk 0:02:12]} 16. c5 {[%clk 0:01:44]}  Ncd5 {[%clk 0:02:08]} 17. b4 {[%clk 0:01:42]}  Qe7 {[%clk 0:01:55]} 18. Nc4 {[%clk 0:01:40]}  Rd7 {[%clk 0:01:47]} 19. Rfe1 {[%clk 0:01:39]}  Red8 {[%clk 0:01:33]} 20. Rcd1 {[%clk 0:01:23]}  Qe6 {[%clk 0:01:17]} 21. e3 {[%clk 0:01:09]}  dxe3 {[%clk 0:01:14]} 22. Nxe3 {[%clk 0:01:04]}  Nxe3 {[%clk 0:01:11]} 23. Rxe3 {[%clk 0:01:02]}  Nd5 {[%clk 0:01:10]} 24. Re2 {[%clk 0:00:56]}  Nc7 {[%clk 0:00:42]} 25. d4 {[%clk 0:00:53]}  Nb5 {[%clk 0:00:38]} 26. f4 {[%clk 0:00:32]}  Nxd4 {[%clk 0:00:34]} 27. Bxd4 {[%clk 0:00:30]}  Rxd4 {[%clk 0:00:34]} 28. Rxd4 {[%clk 0:00:30]}  Rxd4 {[%clk 0:00:35]} 29. fxe5 {[%clk 0:00:30]}  Bxe5 {[%clk 0:00:27]} 30. Kh2 {[%clk 0:00:16]}  Kg7 {[%clk 0:00:23]} 31. Qb3 {[%clk 0:00:00]}  Qxb3 {[%clk 0:00:21]} 0-1


[Site "https://www.chess.com"]